fUSD/lending_fUSD_20250916
["ID","MTS","AMOUNT","RATE_DAILY","PERIOD"]
[385829108,1758057114538,-7636.7,0.00035341,6]
[385829109,1758057114548,-1729.73,0.00035341,6]
[385829110,1758057114557,-524.19,0.00035341,6]
[385829111,1758057114566,-844.72,0.00035341,6]
[385829112,1758057114575,-505.69,0.00035341,6]
[385829113,1758057114584,-400.0,0.00035341,6]
[385829114,1758057114593,-546.33,0.00035341,6]
[385829115,1758057114602,-335.41922359,0.00035341,6]
[385829116,1758057114611,-1051.06,0.00035341,6]
[385829117,1758057114620,-1470.36,0.00035341,6]
[385829118,1758057114629,-472.24,0.00035342,6]
[385829119,1758057114639,-595.04,0.00035342,6]
[385829120,1758057114648,-817.46,0.00035342,6]
[385829121,1758057114658,-400.0,0.00035342,6]
[385829122,1758057114668,-426.72,0.00035342,6]
[385829123,1758057114677,-400.0,0.00035342,6]
[385829124,1758057114686,-400.0,0.00035342,6]
[385829125,1758057114695,-400.0,0.00035342,6]
[385829126,1758057114705,-400.0,0.00035342,6]
[385829127,1758057114716,-466.82,0.00035342,6]
[385829128,1758057114727,-436.46,0.00035342,6]
[385829129,1758057114736,-444.47,0.00035342,6]
[385829130,1758057114746,-400.0,0.00035342,6]
[385829131,1758057114755,-538.45,0.00035342,6]
[385829132,1758057114766,-897.93,0.00035342,6]
[385829133,1758057114775,-400.39,0.00035342,6]
[385829134,1758057114785,-477.46,0.00035342,6]
[385829135,1758057114796,-207.85778407,0.00035342,6]
[385829136,1758057114807,-420.75,0.00035342,6]
[385829137,1758057114817,-2152.72,0.00035342,6]
[385829138,1758057114827,-400.0,0.00035342,6]
[385829139,1758057114837,-446.8,0.00035342,6]
[385829140,1758057114847,-510.47027018,0.00035342,6]
[385829141,1758057114857,-319.46213822,0.00035342,6]
[385829142,1758057114866,-164.55251473,0.00035342,6]
[385829143,1758057114875,-414.26,0.00035342,6]
[385829144,1758057114885,-633.69,0.00035342,6]
[385829145,1758057114895,-448.78965019,0.00035342,6]
[385829146,1758057114909,-488.35,0.00035342,6]
[385829147,1758057114925,-636.75,0.00035342,6]
[385829148,1758057114935,-605.63,0.00035342,6]
[385829149,1758057114946,-535.77,0.00035342,6]
[385829150,1758057114956,-609.74,0.00035342,6]
[385829151,1758057114965,-400.0,0.00035342,6]
[385829152,1758057114977,-713.21,0.00035342,6]
[385829153,1758057114987,-400.0,0.00035342,6]
[385829154,1758057114997,-470.05,0.00035342,6]
[385829155,1758057115007,-545.98,0.00035342,6]
[385829156,1758057115016,-435.33,0.00035342,6]
[385829157,1758057115025,-1275.84,0.00035342,6]
[385829158,1758057115035,-400.0,0.00035342,6]
[385829159,1758057115044,-1307.51,0.00035342,6]
[385829160,1758057115054,-585.24,0.00035342,6]
[385829161,1758057115065,-2094.1,0.00035342,6]
[385829162,1758057115076,-432.42,0.00035342,6]
[385829163,1758057115086,-807.22,0.00035342,6]
[385829164,1758057115096,-426.07,0.00035342,6]
[385829165,1758057115105,-450.81,0.00035342,6]
[385829166,1758057115115,-1320.54,0.00035342,6]
[385829167,1758057115125,-289.66172999,0.00035342,6]
[385829168,1758057115137,-2034.04,0.00035342,6]
[385829169,1758057115147,-400.0,0.00035342,6]
[385829170,1758057115157,-632.25,0.00035342,6]
[385829171,1758057115166,-691.17,0.00035342,6]
[385829172,1758057115176,-712.91,0.00035342,6]
[385829173,1758057115185,-531.95,0.00035342,6]
[385829174,1758057115194,-400.0,0.00035342,6]
[385829175,1758057115204,-400.0,0.00035342,6]
[385829176,1758057115213,-400.0,0.00035342,6]
[385829177,1758057115223,-2182.91,0.00035342,6]
[385829178,1758057115232,-668.63,0.00035342,6]
[385829179,1758057115242,-682.52,0.00035342,6]
[385829180,1758057115251,-577.47,0.00035342,6]
[385829181,1758057115262,-400.0,0.00035342,6]
[385829182,1758057115271,-613.19,0.00035342,6]
[385829183,1758057115281,-409.76,0.00035342,6]
[385829184,1758057115290,-1025.88,0.00035342,6]
[385829185,1758057115299,-1251.89,0.00035342,6]
[385829186,1758057115309,-924.97,0.00035342,6]
[385829187,1758057115319,-605.66,0.00035342,6]
[385829188,1758057115328,-593.74,0.00035342,6]
[385829189,1758057115338,-516.31,0.00035342,6]
[385829190,1758057115348,-400.0,0.00035342,6]
[385829191,1758057115357,-400.0,0.00035342,6]
[385829192,1758057115367,-400.0,0.00035342,6]
[385829193,1758057115377,-316.24104024,0.00035342,6]
[385829194,1758057115387,-1014.87,0.00035342,6]
[385829195,1758057115396,-524.6,0.00035342,6]
[385829196,1758057115406,-493.11,0.00035342,6]
[385829197,1758057115416,-412.98,0.00035342,6]
[385829198,1758057115426,-588.1,0.00035342,6]
[385829199,1758057115435,-529.64,0.00035342,6]
[385829200,1758057115444,-400.0,0.00035342,6]
[385829201,1758057115453,-574.6,0.00035342,6]
[385829202,1758057115462,-983.68,0.00035342,6]
[385829203,1758057115472,-436.67,0.00035342,6]
[385829204,1758057115481,-410.54,0.00035342,6]
[385829205,1758057115490,-409.35,0.00035342,6]
[385829206,1758057115499,-875.58,0.00035342,6]
[385829207,1758057115509,-457.79,0.00035342,6]
[385829208,1758057115519,-625.93,0.00035342,6]
[385829209,1758057115529,-400.0,0.00035342,6]
[385829210,1758057115538,-791.37,0.00035342,6]
[385829211,1758057115549,-609.54,0.00035342,6]
[385829212,1758057115558,-745.45,0.00035342,6]
[385829213,1758057115568,-510.33,0.00035342,6]
[385829214,1758057115580,-556.43,0.00035342,6]
[385829215,1758057115590,-400.0,0.00035342,6]
[385829216,1758057115600,-438.34,0.00035342,6]
[385829217,1758057115609,-636.26,0.00035342,6]
[385829218,1758057115619,-1260.15,0.00035342,6]
[385829219,1758057115629,-525.04,0.00035342,6]
[385829220,1758057115638,-587.63,0.00035342,6]
[385829221,1758057115648,-479.5,0.00035342,6]
[385829222,1758057115658,-461.54,0.00035342,6]
[385829223,1758057115668,-506.39,0.00035342,6]
[385829224,1758057115678,-462.29,0.00035342,6]
[385829225,1758057115687,-1289.38,0.00035342,6]
[385829226,1758057115697,-400.0,0.00035342,6]
[385829227,1758057115706,-400.0,0.00035342,6]
[385829228,1758057115715,-400.0,0.00035342,6]
[385829229,1758057115725,-690.9,0.00035342,6]
[385829230,1758057115734,-449.23,0.00035342,5]
[385829231,1758057115744,-516.38671781,0.00035342,6]
[385829232,1758057115754,-1146.39,0.00035342,6]
[385829233,1758057115763,-384.23280024,0.00035342,6]
[385829234,1758057115775,-527.32001784,0.00035342,6]
[385829235,1758057115786,-400.0,0.00035342,6]
[385829236,1758057115795,-497.6,0.00035342,6]
[385829237,1758057115805,-843.08,0.00035342,6]
[385829238,1758057115815,-400.0,0.00035342,6]
[385829239,1758057115825,-400.0,0.00035342,6]
[385829240,1758057115834,-2611.36,0.00035342,6]
[385829241,1758057115844,-348.24361148,0.00035342,6]
[385829242,1758057115854,-836.09,0.00035342,6]
[385829243,1758057115863,-400.0,0.00035342,6]
[385829244,1758057115873,-467.85,0.00035342,6]
[385829245,1758057115883,-553.62,0.00035342,6]
[385829246,1758057115892,-400.0,0.00035342,6]
[385829247,1758057115908,-400.0,0.00035342,6]
[385829248,1758057115918,-1289.35,0.00035342,6]
[385829249,1758057115927,-430.5,0.00035342,6]
[385829250,1758057115937,-441.74,0.00035342,6]
[385829251,1758057115947,-479.52,0.00035342,6]
[385829252,1758057115956,-507.91,0.00035342,6]
[385829253,1758057115966,-2216.47,0.00035342,6]
[385829254,1758057115976,-547.58,0.00035342,6]
[385829255,1758057115986,-153.0,0.00035342,2]
[385829256,1758057115995,-153.0,0.00035342,2]
[385829257,1758057116005,-153.0,0.00035342,2]
[385829258,1758057116014,-153.0,0.00035342,2]
[385829259,1758057116023,-153.0,0.00035342,2]
[385829260,1758057116033,-153.0,0.00035342,2]
[385829261,1758057116042,-153.0,0.00035342,2]
[385829262,1758057116052,-153.0,0.00035342,2]
[385829263,1758057116061,-153.0,0.00035342,2]
[385829264,1758057116071,-153.0,0.00035342,2]
[385829265,1758057116080,-153.0,0.00035342,2]
[385829266,1758057116089,-153.0,0.00035342,2]
[385829267,1758057116099,-153.0,0.00035342,2]
[385829268,1758057116109,-153.0,0.00035342,2]
[385829269,1758057116118,-153.0,0.00035342,2]
[385829270,1758057116129,-153.0,0.00035342,2]
[385829271,1758057116141,-153.0,0.00035342,2]
[385829272,1758057116150,-153.0,0.00035342,2]
[385829273,1758057116160,-153.0,0.00035342,2]
[385829274,1758057116170,-153.0,0.00035342,2]
[385829275,1758057116179,-153.0,0.00035342,2]
[385829276,1758057116189,-153.0,0.00035342,2]
[385829277,1758057116199,-153.0,0.00035342,2]
[385829278,1758057116208,-153.0,0.00035342,2]
[385829279,1758057116218,-153.0,0.00035342,2]
[385829280,1758057116227,-153.0,0.00035342,2]
[385829281,1758057116237,-153.0,0.00035342,2]
[385829282,1758057116246,-153.0,0.00035342,2]
[385829283,1758057116257,-153.0,0.00035342,2]
[385829284,1758057116266,-153.0,0.00035342,2]
[385829285,1758057116277,-153.0,0.00035342,2]
[385829286,1758057116286,-153.0,0.00035342,2]
[385829287,1758057116297,-153.0,0.00035342,2]
[385829288,1758057116306,-153.0,0.00035342,2]
[385829289,1758057116316,-153.0,0.00035342,2]
[385829290,1758057116325,-153.0,0.00035342,2]
[385829291,1758057116336,-153.0,0.00035342,2]
[385829292,1758057116345,-153.0,0.00035342,2]
[385829293,1758057116355,-153.0,0.00035342,2]
[385829294,1758057116365,-153.0,0.00035342,2]
[385829295,1758057116374,-153.0,0.00035342,2]
[385829296,1758057116384,-153.0,0.00035342,2]
[385829297,1758057116394,-153.0,0.00035342,2]
[385829298,1758057116403,-153.0,0.00035342,2]
[385829299,1758057116414,-153.0,0.00035342,2]
[385829300,1758057116424,-153.0,0.00035342,2]
[385829301,1758057116434,-153.0,0.00035342,2]
[385829302,1758057116445,-153.0,0.00035342,2]
[385829303,1758057116455,-153.0,0.00035342,2]
[385829304,1758057116465,-153.0,0.00035342,2]
[385829305,1758057116475,-153.0,0.00035342,2]
[385829306,1758057116485,-153.0,0.00035342,2]
[385829307,1758057116494,-153.0,0.00035342,2]
[385829308,1758057116503,-153.0,0.00035342,2]
[385829309,1758057116513,-153.0,0.00035342,2]
[385829310,1758057116523,-153.0,0.00035342,2]
[385829311,1758057116533,-153.0,0.00035342,2]
[385829312,1758057116543,-153.0,0.00035342,2]
[385829313,1758057116552,-153.0,0.00035342,2]
[385829314,1758057116562,-153.0,0.00035342,2]
[385829315,1758057116571,-153.0,0.00035342,2]
[385829316,1758057116581,-153.0,0.00035342,2]
[385829317,1758057116591,-153.0,0.00035342,2]
[385829318,1758057116601,-153.0,0.00035342,2]
[385829319,1758057116610,-153.0,0.00035342,2]
[385829320,1758057116619,-153.0,0.00035342,2]
[385829321,1758057116629,-153.0,0.00035342,2]
[385829322,1758057116639,-153.0,0.00035342,2]
[385829323,1758057116648,-153.0,0.00035342,2]
[385829324,1758057116658,-153.0,0.00035342,2]
[385829325,1758057116668,-153.0,0.00035342,2]
[385829326,1758057116678,-150.0,0.00035348,120]
[385829327,1758057116687,-258.3193848,0.0003535,2]
[385829328,1758057116697,-500.0,0.00035356,7]
[385829329,1758057116707,-1300.0,0.00035359,7]
[385829330,1758057116721,-500.0,0.00035395,7]
[385829331,1758057116732,-150.0,0.00035419,2]
[385829332,1758057116742,-258.43399555,0.00035422,2]
[385829333,1758057116752,-500.0,0.00035424,7]
[385829334,1758057116761,-329.376661,0.00035425,2]
[385829335,1758057116771,-400.31932644,0.00035428,2]
[385829336,1758057116781,-471.26199189,0.00035431,2]
[385829337,1758057116988,-542.20465733,0.00035433,2]
[385829338,1758057116999,-613.14732278,0.00035436,2]
[385829339,1758057117009,-684.08998823,0.00035439,2]
[385829340,1758057117018,-755.03265367,0.00035442,2]
[385829341,1758057117027,-825.97531912,0.00035445,2]
[385829342,1758057117037,-700.0,0.00035451,7]
[385829343,1758057117047,-500.0,0.00035492,7]
[385829344,1758057117057,-700.0,0.00035494,7]
[385829345,1758057117067,-59866.358684,0.00035495,4]
[385829346,1758057117076,-1245.00834907,0.000355,2]
[385829347,1758057117086,-500.0,0.00035509,7]
[385829348,1758057117096,-1100.0,0.00035513,7]
[385829349,1758057117105,-500.0,0.00035532,7]
[385829350,1758057117115,-1000.0,0.00035532,7]
[385829351,1758057117124,-198.69043206,0.00035535,2]
[385829352,1758057117133,-150.0,0.0003555,120]
[385829353,1758057117143,-400.0,0.0003557,2]
[385829354,1758057117153,-400.0,0.0003557,2]
[385829355,1758057117162,-400.0,0.0003557,2]
[385829356,1758057117172,-400.0,0.0003557,2]
[385829357,1758057117181,-300.0,0.0003557,2]
[385829358,1758057117190,-400.0,0.0003557,2]
[385829359,1758057117200,-300.0,0.0003557,2]
[385829360,1758057117209,-400.0,0.0003557,2]
[385829361,1758057117219,-150.0,0.00035577,120]
[385829362,1758057117228,-150.0,0.0003558,2]
[385829363,1758057117237,-1395.64841539,0.00035581,2]
[385829364,1758057117247,-257.39389035,0.00035583,2]
[385829365,1758057117256,-328.05103672,0.00035586,2]
[385829366,1758057117265,-398.70818309,0.00035589,2]
[385829367,1758057117275,-469.36532946,0.00035592,2]
[385829368,1758057117284,-540.02247583,0.00035595,2]
[385829369,1758057117294,-610.6796222,0.00035597,2]
[385829370,1758057117303,-681.33676857,0.000356,2]
[385829371,1758057117312,-192.0,0.000356,15]
[385829372,1758057117321,-644.0,0.00035602,2]
[385829373,1758057117331,-751.99391494,0.00035603,2]
[385829374,1758057117340,-822.65106129,0.00035606,2]
[385829375,1758057117350,-405.53,0.00035615,6]
[385829376,1758057117359,-221.86483633,0.00035615,6]
[385829377,1758057117369,-595.63,0.00035615,6]
[385829378,1758057117378,-1028.77,0.00035615,6]
[385829379,1758057117389,-1409.64,0.00035615,6]
[385829380,1758057117398,-400.0,0.00035615,6]
[385829381,1758057117407,-600.72,0.00035615,6]
[385829382,1758057117417,-400.0,0.00035615,6]
[385829383,1758057117426,-400.0,0.00035615,6]
[385829384,1758057117435,-1436.86,0.00035615,6]
[385829385,1758057117445,-506.37,0.00035615,6]
[385829386,1758057117455,-7636.7,0.00035615,6]
[385829387,1758057117464,-1729.73,0.00035615,6]
[385829388,1758057117474,-524.19,0.00035615,6]
[385829389,1758057117484,-844.72,0.00035615,6]
[385829390,1758057117493,-505.69,0.00035615,6]
[385829391,1758057117502,-400.0,0.00035615,6]
[385829392,1758057117511,-546.33,0.00035615,6]
[385829393,1758057117522,-1051.06,0.00035615,6]
[385829394,1758057117531,-1470.36,0.00035615,6]
[385829395,1758057117540,-472.24,0.00035616,6]
[385829396,1758057117550,-595.04,0.00035616,6]
[385829397,1758057117560,-817.46,0.00035616,6]
[385829398,1758057117569,-248.77704318,0.00035616,6]
[385829399,1758057117579,-426.72,0.00035616,6]
[385829400,1758057117589,-400.0,0.00035616,6]
[385829401,1758057117598,-400.0,0.00035616,6]
[385829402,1758057117607,-400.0,0.00035616,6]
[385829403,1758057117617,-400.0,0.00035616,6]
[385829404,1758057117627,-466.82,0.00035616,6]
[385829405,1758057117638,-436.46,0.00035616,6]
[385829406,1758057117648,-444.47,0.00035616,6]
[385829407,1758057117660,-400.0,0.00035616,6]
[385829408,1758057117670,-538.45,0.00035616,6]
[385829409,1758057117679,-897.93,0.00035616,6]
[385829410,1758057117689,-400.39,0.00035616,6]
[385829411,1758057117699,-477.46,0.00035616,6]
[385829412,1758057117709,-420.75,0.00035616,6]
[385829413,1758057117721,-2152.72,0.00035616,6]
[385829414,1758057117733,-400.0,0.00035616,6]
[385829415,1758057117743,-446.8,0.00035616,6]
[385829416,1758057117754,-414.26,0.00035616,6]
[385829417,1758057117765,-633.69,0.00035616,6]
[385829418,1758057117774,-488.35,0.00035616,6]
[385829419,1758057117784,-636.75,0.00035616,6]
[385829420,1758057117793,-605.63,0.00035616,6]
[385829421,1758057117803,-535.77,0.00035616,6]
[385829422,1758057117813,-609.74,0.00035616,6]
[385829423,1758057117824,-400.0,0.00035616,6]
[385829424,1758057117834,-713.21,0.00035616,6]
[385829425,1758057117844,-218.17096085,0.00035616,6]
[385829426,1758057117853,-470.05,0.00035616,6]
[385829427,1758057117863,-545.98,0.00035616,6]
[385829428,1758057117873,-435.33,0.00035616,6]
[385829429,1758057117882,-1275.84,0.00035616,6]
[385829430,1758057117892,-400.0,0.00035616,6]
[385829431,1758057117906,-1307.51,0.00035616,6]
[385829432,1758057117916,-585.24,0.00035616,6]
[385829433,1758057117926,-2094.1,0.00035616,6]
[385829434,1758057117936,-432.42,0.00035616,6]
[385829435,1758057117947,-807.22,0.00035616,6]
[385829436,1758057117957,-426.07,0.00035616,6]
[385829437,1758057117966,-450.81,0.00035616,6]
[385829438,1758057117978,-1320.54,0.00035616,6]
[385829439,1758057117989,-2034.04,0.00035616,6]
[385829440,1758057118000,-400.0,0.00035616,6]
[385829441,1758057118010,-691.17,0.00035616,6]
[385829442,1758057118021,-632.25,0.00035616,6]
[385829443,1758057118031,-712.91,0.00035616,6]
[385829444,1758057118040,-531.95,0.00035616,6]
[385829445,1758057118050,-400.0,0.00035616,6]
[385829446,1758057118059,-471.07108911,0.00035616,6]
[385829447,1758057118069,-400.0,0.00035616,6]
[385829448,1758057118079,-2182.91,0.00035616,6]
[385829449,1758057118088,-668.63,0.00035616,6]
[385829450,1758057118099,-682.52,0.00035616,6]
[385829451,1758057118109,-577.47,0.00035616,6]
[385829452,1758057118118,-400.0,0.00035616,6]
[385829453,1758057118127,-613.19,0.00035616,6]
[385829454,1758057118137,-409.76,0.00035616,6]
[385829455,1758057118146,-1025.88,0.00035616,6]
[385829456,1758057118156,-1251.89,0.00035616,6]
[385829457,1758057118166,-924.97,0.00035616,6]
[385829458,1758057118176,-605.66,0.00035616,6]
[385829459,1758057118185,-593.74,0.00035616,6]
[385829460,1758057118195,-516.31,0.00035616,6]
[385829461,1758057118205,-400.0,0.00035616,6]
[385829462,1758057118215,-400.0,0.00035616,6]
[385829463,1758057118225,-400.0,0.00035616,6]
[385829464,1758057118234,-1014.87,0.00035616,6]
[385829465,1758057118243,-524.6,0.00035616,6]
[385829466,1758057118253,-493.11,0.00035616,6]
[385829467,1758057118263,-412.98,0.00035616,6]
[385829468,1758057118273,-588.1,0.00035616,6]
[385829469,1758057118283,-529.64,0.00035616,6]
[385829470,1758057118292,-400.0,0.00035616,6]
[385829471,1758057118302,-574.6,0.00035616,6]
[385829472,1758057118311,-983.68,0.00035616,6]
[385829473,1758057118320,-436.67,0.00035616,6]
[385829474,1758057118330,-410.54,0.00035616,6]
[385829475,1758057118339,-409.35,0.00035616,6]
[385829476,1758057118349,-875.58,0.00035616,6]
[385829477,1758057118361,-457.79,0.00035616,6]
[385829478,1758057118371,-625.93,0.00035616,6]
[385829479,1758057118381,-400.0,0.00035616,6]
[385829480,1758057118390,-791.37,0.00035616,6]
[385829481,1758057118399,-609.54,0.00035616,6]
[385829482,1758057118409,-745.45,0.00035616,6]
[385829483,1758057118418,-510.33,0.00035616,6]
[385829484,1758057118427,-556.43,0.00035616,6]
[385829485,1758057118437,-269.08959377,0.00035616,6]
[385829486,1758057118446,-438.34,0.00035616,6]
[385829487,1758057118455,-636.26,0.00035616,6]
[385829488,1758057118465,-1260.15,0.00035616,6]
[385829489,1758057118476,-587.63,0.00035616,6]
[385829490,1758057118486,-479.5,0.00035616,6]
[385829491,1758057118496,-461.54,0.00035616,6]
[385829492,1758057118505,-506.39,0.00035616,6]
[385829493,1758057118515,-462.29,0.00035616,6]
[385829494,1758057118524,-1289.38,0.00035616,6]
[385829495,1758057118534,-400.0,0.00035616,6]
[385829496,1758057118543,-400.0,0.00035616,6]
[385829497,1758057118552,-400.0,0.00035616,6]
[385829498,1758057118561,-690.9,0.00035616,6]
[385829499,1758057118571,-449.23,0.00035616,5]
[385829500,1758057118581,-1146.39,0.00035616,6]
[385829501,1758057118591,-240.23623047,0.00035616,6]
[385829502,1758057118601,-497.6,0.00035616,6]
[385829503,1758057118611,-843.08,0.00035616,6]
[385829504,1758057118620,-319.16427323,0.00035616,6]
[385829505,1758057118630,-400.0,0.00035616,6]
[385829506,1758057118639,-2611.36,0.00035616,6]
[385829507,1758057118649,-836.09,0.00035616,6]
[385829508,1758057118659,-400.0,0.00035616,6]
[385829509,1758057118668,-467.85,0.00035616,6]
[385829510,1758057118678,-553.62,0.00035616,6]
[385829511,1758057118687,-400.0,0.00035616,6]
[385829512,1758057118697,-400.0,0.00035616,6]
[385829513,1758057118706,-430.5,0.00035616,6]
[385829514,1758057118716,-1289.35,0.00035616,6]
[385829515,1758057118725,-441.74,0.00035616,6]
[385829516,1758057118734,-479.52,0.00035616,6]
[385829517,1758057118743,-507.91,0.00035616,6]
[385829518,1758057118752,-2216.47,0.00035616,6]
[385829519,1758057118761,-547.58,0.00035616,6]
[385829520,1758057118771,-953.73504829,0.00035616,5]
[385829521,1758057118780,-366.84796979,0.00035616,2]
[385829522,1758057118790,-153.9,0.00035622,60]
[385829523,1758057118799,-173.1,0.00035622,60]
[385829524,1758057118808,-309.82,0.00035636,60]
[385829525,1758057118818,-600.0,0.00035666,7]
[385829526,1758057118827,-500.0,0.00035676,7]
[385829527,1758057118837,-150.0,0.00035684,120]
[385829528,1758057118846,-444.0,0.00035686,90]
[385829529,1758057118855,-1100.0,0.00035709,7]
[385829530,1758057118864,-309.82,0.00035736,60]
[385829531,1758057118874,-230.0,0.0003575,2]
[385829532,1758057118883,-150.0,0.00035754,120]
[385829533,1758057118893,-177.63531936,0.00035759,2]
[385829534,1758057118905,-177.09669635,0.00035759,2]
[385829535,1758057118915,-177.09669635,0.00035759,2]
[385829536,1758057118925,-177.11285504,0.00035759,2]
[385829537,1758057118934,-177.08053766,0.00035759,2]
[385829538,1758057118944,-177.11285504,0.00035759,2]
[385829539,1758057118954,-236.11276988,0.00035759,2]
[385829540,1758057118964,-177.09669635,0.00035759,2]
[385829541,1758057118973,-500.0,0.00035776,7]
[385829542,1758057118984,-500.0,0.00035781,7]
[385829543,1758057118993,-11809.71,0.000358,120]
[385829544,1758057119004,-150.0,0.00035824,120]
[385829545,1758057119013,-500.0,0.00035828,7]
[385829546,1758057119023,-309.82,0.00035836,60]
[385829547,1758057119033,-700.0,0.00035836,7]
[385829548,1758057119043,-500.0,0.00035847,7]
[385829549,1758057119052,-600.0,0.00035849,7]
[385829550,1758057119061,-8375.24189448,0.0003585,60]
[385829551,1758057119070,-1300.0,0.00035866,7]
[385829552,1758057119080,-500.0,0.00035868,7]
[385829553,1758057119089,-644.0,0.00035876,2]
[385829554,1758057119099,-150.0,0.00035879,2]
[385829555,1758057119108,-703.0,0.0003588,120]
[385829556,1758057119117,-495.13188,0.00035888,30]
[385829557,1758057119126,-547.995,0.00035889,12]
[385829558,1758057119135,-405.53,0.00035889,6]
[385829559,1758057119145,-595.63,0.00035889,6]
[385829560,1758057119154,-1028.77,0.00035889,6]
[385829561,1758057119163,-1409.64,0.00035889,6]
[385829562,1758057119173,-400.0,0.00035889,6]
[385829563,1758057119182,-600.72,0.00035889,6]
[385829564,1758057119192,-400.0,0.00035889,6]
[385829565,1758057119201,-400.0,0.00035889,6]
[385829566,1758057119210,-1436.86,0.00035889,6]
[385829567,1758057119220,-506.37,0.00035889,6]
[385829568,1758057119231,-7636.7,0.00035889,6]
[385829569,1758057119242,-1729.73,0.00035889,6]
[385829570,1758057119251,-524.19,0.00035889,6]
[385829571,1758057119261,-505.69,0.00035889,6]
[385829572,1758057119271,-844.72,0.00035889,6]
[385829573,1758057119346,-400.0,0.00035889,6]
[385829574,1758057119355,-546.33,0.00035889,6]
[385829575,1758057119365,-1051.06,0.00035889,6]
[385829576,1758057119374,-1470.36,0.00035889,6]
[385829577,1758057119385,-472.24,0.0003589,6]
[385829578,1758057119396,-595.04,0.0003589,6]
[385829579,1758057119405,-817.46,0.0003589,6]
[385829580,1758057119415,-426.72,0.0003589,6]
[385829581,1758057119424,-507.23981429,0.0003589,6]
[385829582,1758057119435,-400.0,0.0003589,6]
[385829583,1758057119444,-400.0,0.0003589,6]
[385829584,1758057119453,-431.78947752,0.0003589,6]
[385829585,1758057119462,-466.82,0.0003589,6]
[385829586,1758057119471,-436.46,0.0003589,6]
[385829587,1758057119481,-444.47,0.0003589,6]
[385829588,1758057119490,-400.0,0.0003589,6]
[385829589,1758057119499,-538.45,0.0003589,6]
[385829590,1758057119510,-897.93,0.0003589,6]
[385829591,1758057119520,-400.39,0.0003589,6]
[385829592,1758057119529,-477.46,0.0003589,6]
[385829593,1758057119540,-420.75,0.0003589,6]
[385829594,1758057119550,-2152.72,0.0003589,6]
[385829595,1758057119560,-400.0,0.0003589,6]
[385829596,1758057119569,-446.8,0.0003589,6]
[385829597,1758057119579,-414.26,0.0003589,6]
[385829598,1758057119588,-633.69,0.0003589,6]
[385829599,1758057119598,-488.35,0.0003589,6]
[385829600,1758057119607,-636.75,0.0003589,6]
[385829601,1758057119617,-605.63,0.0003589,6]
[385829602,1758057119626,-535.77,0.0003589,6]
[385829603,1758057119636,-609.74,0.0003589,6]
[385829604,1758057119646,-276.6541654,0.0003589,6]
[385829605,1758057119655,-713.21,0.0003589,6]
[385829606,1758057119665,-470.05,0.0003589,6]
[385829607,1758057119674,-545.98,0.0003589,6]